[Event "10th LCC FIDE Open 2018"]
[Site "London"]
[Date "2018.12.15"]
[Round "8"]
[White "Van Zyl-Rudd, Jack"]
[Black "Johnson, Daniel"]
[Result "1/2-1/2"]
[ECO "D36"]
[WhiteElo "2306"]
[BlackElo "2111"]
[Annotator "ChessBase"]
[PlyCount "101"]
[EventDate "2018.12.09"]
[EventType "swiss"]
[EventCountry "ENG"]
[SourceTitle "playchess.com"]
[Source "ChessBase"]
[SourceQuality "1"]
[TimeControl "40/5400+30:1800+30"]

1. d4 {[%emt 0:00:00]} d5 {[%emt 0:13:24]} 2. c4 {[%emt 0:00:00]} e6 {[%emt 0:00:03]} 3. Nc3 {[%emt 0:00:00]} Be7 {[%emt 0:00:05]} 4. Nf3 {[%emt 0:00:17]} Nf6 {[%emt 0:00:12]} 5. cxd5 {[%emt 0:00:23]} exd5 {[%emt 0:00:16]} 6. Bg5 {[%emt 0:00:07]} c6 {[%emt 0:02:08]} 7. Qc2 {[%emt 0:00:45]} O-O {[%emt 0:01:40]} 8. e3 {[%emt 0:00:06]} Ne4 {[%emt 0:06:08]} 9. Bxe7 {[%emt 0:04:08]} Qxe7 {[%emt 0:02:35]} 10. Bd3 {[%emt 0:00:02]} f5 {[%emt 0:07:25]} 11. O-O {[%emt 0:02:38]} Be6 {[%emt 0:05:36]} 12. Rab1 {[%emt 0:21:26]} a5 {[%emt 0:03:28]} 13. a3 {[%emt 0:10:03]} Nd7 {[%emt 0:03:53]} 14. Ne2 {[%emt 0:04:21]} Rfc8 {[%emt 0:16:44]} 15. Rfc1 {[%emt 0:02:10]} g6 {[%emt 0:07:06]} 16. Nf4 {[%emt 0:07:22]} Bf7 {[%emt 0:04:18]} 17. Bf1 {[%emt 0:01:06]} Nd6 {[%emt 0:01:51]} 18. Nd3 {[%emt 0:14:36]} Nc4 {[%emt 0:04:23]} 19. Nd2 {[%emt 0:00:30]} Nxd2 {[%emt 0:07:40]} 20. Qxd2 {[%emt 0:00:08]} Kg7 {[%emt 0:01:57]} 21. Nc5 {[%emt 0:08:22]} Nf6 {[%emt 0:01:07]} 22. Bd3 {[%emt 0:01:25]} b6 {[%emt 0:04:56]} 23. Na4 {[%emt 0:01:02]} Nd7 {[%emt 0:00:23]} 24. Rc2 {[%emt 0:01:10]} Qd6 {[%emt 0:02:32]} 25. Rbc1 {[%emt 0:00:24]} Rc7 {[%emt 0:01:57]} 26. Nc3 {[%emt 0:00:49]} Raa7 {[%emt 0:00:34]} 27. h3 {[%emt 0:04:27]} Nf6 {[%emt 0:00:22]} 28. Na4 {[%emt 0:00:44]} Nd7 {[%emt 0:00:13]} 29. Qc3 {[%emt 0:00:41]} Be8 {[%emt 0:00:50]} 30. Qd2 {[%emt 0:04:35]} b5 {[%emt 0:00:37]} 31. Nc3 {[%emt 0:00:30]} Nf6 {[%emt 0:00:21]} 32. Ne2 {[%emt 0:00:49]} b4 {[%emt 0:00:24]} 33. axb4 {[%emt 0:00:58]} axb4 {[%emt 0:00:18]} 34. Nf4 {[%emt 0:01:26]} Rcb7 {[%emt 0:00:40]} 35. f3 {[%emt 0:01:51]} Ra2 {[%emt 0:00:29]} 36. Bf1 {[%emt 0:00:48]} b3 {[%emt 0:00:51]} 37. Rc5 {[%emt 0:01:00]} Rb6 {[%emt 0:00:20]} 38. Nd3 {[%emt 0:00:38]} Ra4 {[%emt 0:00:40]} 39. Ne5 {[%emt 0:00:44]} Ra2 {[%emt 0:00:23]} 40. Qc3 {[%emt 0:03:15]} Qe6 {[%emt 0:00:22]} 41. Ra5 {[%emt 0:11:09]} Rxa5 {[%emt 0:06:45]} 42. Qxa5 {[%emt 0:00:11]} Rb7 {[%emt 0:01:04]} 43. Qa6 {[%emt 0:03:27]} Qe7 {[%emt 0:02:46]} 44. Rc3 {[%emt 0:01:52]} f4 {[%emt 0:14:23]} 45. exf4 {[%emt 0:01:25]} Nh5 {[%emt 0:01:12]} 46. Nxc6 {[%emt 0:09:11]} Bxc6 {[%emt 0:00:22]} 47. Qxc6 {[%emt 0:01:56]} Nxf4 {[%emt 0:00:39]} 48. g3 {[%emt 0:00:34]} Nh5 {[%emt 0:03:01]} 49. Kf2 {[%emt 0:01:16]} Nf6 {[%emt 0:00:34]} 50. Re3 {[%emt 0:01:37]} Qf7 {[%emt 0:00:11]} 51. Bd3 {[%emt 0:02:03]} 1/2-1/2

[Event "10th LCC FIDE Open 2018"]
[Site "London"]
[Date "2018.12.15"]
[Round "8"]
[White "Abbas, Daniel"]
[Black "Jyothilal, N.."]
[Result "1-0"]
[ECO "B52"]
[WhiteElo "2280"]
[BlackElo "2078"]
[Annotator "NA"]
[PlyCount "85"]
[EventDate "2018.12.09"]
[EventType "swiss"]
[EventCountry "ENG"]
[SourceTitle "playchess.com"]
[Source "ChessBase"]
[SourceQuality "1"]
[TimeControl "40/5400+30:1800+30"]

1. e4 {[%emt 0:00:00]} c5 {[%emt 0:00:00]} 2. Nf3 {[%emt 0:00:00]} d6 {[%emt 0:00:00]} 3. Bb5+ {[%emt 0:00:00]} Bd7 {[%emt 0:00:00]} 4. c4 {[%emt 0:00:00]} Nc6 {[%emt 0:00:42]} 5. Nc3 {[%emt 0:01:06]} g6 {[%emt 0:03:17]} 6. d4 {[%emt 0:00:31]} cxd4 {[%emt 0:00:26]} 7. Nxd4 {[%emt 0:00:05]} Bg7 {[%emt 0:00:29]} 8. Be3 {[%emt 0:00:09]} Nf6 {[%emt 0:00:47]} 9. h3 {[%emt 0:00:55]} O-O {[%emt 0:01:17]} 10. O-O {[%emt 0:00:09]} a6 {[%emt 0:03:25]} 11. Bxc6 {[%emt 0:00:07]} bxc6 {[%emt 0:00:13]} 12. c5 {[%emt 0:00:06]} Rb8 {[%emt 0:06:29]} 13. Qe2 {[%emt 0:04:22]} Qc7 {[%emt 0:10:45]} 14. cxd6 {[%emt 0:20:34]} exd6 {[%emt 0:00:10]} 15. Rfd1 {[%emt 0:01:20]} Rfe8 {[%emt 0:07:06]} 16. Qc2 {[%emt 0:07:20]} c5 {[%emt 0:10:25]} 17. Nde2 {[%emt 0:03:58]} Nxe4 {[%emt 0:11:42]} 18. Nxe4 {[%emt 0:01:50]} Rxb2 {[%emt 0:00:08]} 19. Qd3 {[%emt 0:01:46]} Rxe2 {[%emt 0:04:19]} 20. Qxe2 {[%emt 0:05:03]} Bxa1 {[%emt 0:00:31]} 21. Nxd6 {[%emt 0:01:11]} Re6 {[%emt 0:02:23]} 22. Nxf7 {[%emt 0:03:33]} Bf6 {[%emt 0:14:45]} 23. Nh6+ {[%emt 0:00:37]} Kg7 {[%emt 0:00:29]} 24. Ng4 {[%emt 0:02:35]} Rd6 {[%emt 0:05:38]} 25. Nxf6 {[%emt 0:12:58]} Rxd1+ {[%emt 0:02:56]} 26. Qxd1 {[%emt 0:00:06]} Kxf6 {[%emt 0:00:05]} 27. Qf3+ {[%emt 0:01:46]} Kg7 {[%emt 0:01:17]} 28. Qd5 {[%emt 0:00:22]} Qc6 {[%emt 0:03:13]} 29. Qe5+ {[%emt 0:00:42]} Qf6 {[%emt 0:01:34]} 30. Bh6+ {[%emt 0:00:46]} Kf7 {[%emt 0:00:09]} 31. Qxc5 {[%emt 0:00:18]} Qe7 {[%emt 0:01:06]} 32. Qd4 {[%emt 0:02:14]} Kg8 {[%emt 0:00:12]} 33. Bd2 {[%emt 0:03:35]} Qf7 {[%emt 0:06:22]} 34. Bc3 {[%emt 0:01:08]} Kf8 {[%emt 0:00:17]} 35. Qd6+ {[%emt 0:05:43]} Qe7 {[%emt 0:02:33]} 36. Qxa6 {[%emt 0:00:27]} Qe6 {[%emt 0:00:58]} 37. Qa8+ {[%emt 0:01:00]} Be8 {[%emt 0:00:23]} 38. Qa3+ {[%emt 0:01:42]} Kg8 {[%emt 0:00:14]} 39. Qa7 {[%emt 0:00:12]} Qd7 {[%emt 0:00:26]} 40. Qc5 {[%emt 0:00:42]} Qd1+ {[%emt 0:02:13]} 41. Kh2 {[%emt 0:30:49]} Qd7 {[%emt 0:01:55]} 42. Qe5 {[%emt 0:00:00]} h5 {[%emt 0:00:07]} 43. a4 {[%emt 0:00:00]} 1-0

[Event "10th LCC FIDE Open 2018"]
[Site "London"]
[Date "2018.12.15"]
[Round "8"]
[White "Merriman, John"]
[Black "Bezuidenhout, Roland"]
[Result "1/2-1/2"]
[ECO "E46"]
[WhiteElo "2261"]
[BlackElo "2145"]
[Annotator "NA"]
[PlyCount "33"]
[EventDate "2018.12.09"]
[EventType "swiss"]
[EventCountry "ENG"]
[SourceTitle "playchess.com"]
[Source "ChessBase"]
[SourceQuality "1"]
[TimeControl "40/5400+30:1800+30"]

1. d4 {[%emt 0:02:25]} Nf6 {[%emt 0:02:27]} 2. c4 {[%emt 0:00:47]} e6 {[%emt 0:00:20]} 3. Nc3 {[%emt 0:00:09]} Bb4 {[%emt 0:00:21]} 4. e3 {[%emt 0:00:05]} O-O {[%emt 0:00:07]} 5. Nge2 {[%emt 0:00:21]} Re8 {[%emt 0:01:14]} 6. a3 {[%emt 0:00:28]} Bf8 {[%emt 0:00:06]} 7. d5 {[%emt 0:08:16]} exd5 {[%emt 0:00:08]} 8. cxd5 {[%emt 0:01:19]} d6 {[%emt 0:00:07]} 9. g3 {[%emt 0:03:45]} c6 {[%emt 0:00:08]} 10. Bg2 {[%emt 0:01:16]} cxd5 {[%emt 0:00:29]} 11. O-O {[%emt 0:01:22]} Nc6 {[%emt 0:00:29]} 12. Nf4 {[%emt 0:09:03]} Bg4 {[%emt 0:00:33]} 13. f3 {[%emt 0:05:01]} Be6 {[%emt 0:00:16]} 14. Nfxd5 {[%emt 0:01:04]} Nxd5 {[%emt 0:00:55]} 15. Nxd5 {[%emt 0:00:54]} Ne7 {[%emt 0:00:19]} 16. Nc3 {[%emt 0:15:30]} d5 {[%emt 0:00:11]} 17. Qd2 {[%emt 0:07:53]} 1/2-1/2

[Event "10th LCC FIDE Open 2018"]
[Site "London"]
[Date "2018.12.15"]
[Round "8"]
[White "Ghukasyan, Siranush"]
[Black "Menzies, Colin"]
[Result "1/2-1/2"]
[ECO "B20"]
[WhiteElo "2245"]
[BlackElo "2132"]
[Annotator "NA"]
[PlyCount "32"]
[EventDate "2018.12.09"]
[EventType "swiss"]
[EventCountry "ENG"]
[SourceTitle "playchess.com"]
[Source "ChessBase"]
[SourceQuality "1"]
[TimeControl "40/5400+30:1800+30"]

1. e4 {[%emt 0:09:22]} c5 {[%emt 0:00:00]} 2. Nf3 {[%emt 0:00:13]} Nf6 {[%emt 0:00:00]} 3. Nc3 {[%emt 0:00:03]} d5 {[%emt 0:00:00]} 4. exd5 {[%emt 0:00:04]} Nxd5 {[%emt 0:00:00]} 5. Nxd5 {[%emt 0:00:03]} Qxd5 {[%emt 0:00:07]} 6. d4 {[%emt 0:00:15]} cxd4 {[%emt 0:00:36]} 7. Qxd4 {[%emt 0:03:16]} Qxd4 {[%emt 0:00:08]} 8. Nxd4 {[%emt 0:00:10]} a6 {[%emt 0:00:03]} 9. Be3 {[%emt 0:00:21]} e5 {[%emt 0:02:22]} 10. Nb3 {[%emt 0:01:42]} Be6 {[%emt 0:01:46]} 11. Nc5 {[%emt 0:03:57]} Bxc5 {[%emt 0:00:54]} 12. Bxc5 {[%emt 0:01:21]} Nd7 {[%emt 0:01:06]} 13. Bd6 {[%emt 0:01:02]} Rc8 {[%emt 0:00:26]} 14. Bd3 {[%emt 0:04:35]} f6 {[%emt 0:09:05]} 15. Ba3 {[%emt 0:17:17]} Nc5 {[%emt 0:04:56]} 16. Be2 {[%emt 0:00:45]} Kf7 {[%emt 0:07:21]} 1/2-1/2

[Event "10th LCC FIDE Open 2018"]
[Site "London"]
[Date "2018.12.15"]
[Round "8"]
[White "Rocco, Federico"]
[Black "Seymour, Timothy P"]
[Result "1-0"]
[ECO "C60"]
[WhiteElo "2244"]
[BlackElo "2080"]
[Annotator "ChessBase"]
[PlyCount "115"]
[EventDate "2018.12.09"]
[EventType "swiss"]
[EventCountry "ENG"]
[SourceTitle "playchess.com"]
[Source "ChessBase"]
[SourceQuality "1"]
[TimeControl "40/5400+30:1800+30"]

1. e4 {[%emt 0:04:42]} e5 {[%emt 0:00:00]} 2. Nf3 {[%emt 0:00:35]} Nc6 {[%emt 0:00:00]} 3. Bb5 {[%emt 0:00:05]} g6 {[%emt 0:00:00]} 4. O-O {[%emt 0:00:05]} Bg7 {[%emt 0:00:00]} 5. c3 {[%emt 0:00:03]} a6 {[%emt 0:00:02]} 6. Ba4 {[%emt 0:00:05]} Nge7 {[%emt 0:00:05]} 7. d4 {[%emt 0:00:10]} exd4 {[%emt 0:00:03]} 8. cxd4 {[%emt 0:00:05]} O-O {[%emt 0:00:16]} 9. d5 {[%emt 0:00:13]} Na5 {[%emt 0:00:06]} 10. Nc3 {[%emt 0:00:47]} d6 {[%emt 0:03:46]} 11. Re1 {[%emt 0:02:29]} b5 {[%emt 0:01:02]} 12. Bc2 {[%emt 0:00:10]} Bb7 {[%emt 0:01:06]} 13. Be3 {[%emt 0:01:18]} Nc4 {[%emt 0:03:24]} 14. Bc1 {[%emt 0:02:59]} Rc8 {[%emt 0:06:55]} 15. Nd2 {[%emt 0:04:16]} Nb6 {[%emt 0:08:30]} 16. Nb3 {[%emt 0:09:03]} Nc4 {[%emt 0:10:32]} 17. Bd3 {[%emt 0:03:34]} c6 {[%emt 0:00:47]} 18. dxc6 {[%emt 0:09:44]} Rxc6 {[%emt 0:01:38]} 19. Bxc4 {[%emt 0:00:59]} Rxc4 {[%emt 0:01:38]} 20. Bg5 {[%emt 0:04:45]} h6 {[%emt 0:05:37]} 21. Bh4 {[%emt 0:10:16]} b4 {[%emt 0:12:42]} 22. Qd3 {[%emt 0:03:12]} Rc7 {[%emt 0:06:26]} 23. Na4 {[%emt 0:03:40]} Bc6 {[%emt 0:17:17]} 24. Nb6 {[%emt 0:04:51]} Bb5 {[%emt 0:04:31]} 25. Qd2 {[%emt 0:00:20]} g5 {[%emt 0:05:00]} 26. Bg3 {[%emt 0:00:25]} Rc6 {[%emt 0:00:16]} 27. Nd5 {[%emt 0:00:18]} Nxd5 {[%emt 0:00:14]} 28. exd5 {[%emt 0:00:09]} Rc4 {[%emt 0:00:16]} 29. Rac1 {[%emt 0:02:50]} Rxc1 {[%emt 0:01:46]} 30. Rxc1 {[%emt 0:00:38]} Qf6 {[%emt 0:01:29]} 31. Qxb4 {[%emt 0:02:20]} Qxb2 {[%emt 0:01:00]} 32. Bxd6 {[%emt 0:00:23]} Re8 {[%emt 0:00:30]} 33. Be7 {[%emt 0:00:48]} Qxa2 {[%emt 0:01:32]} 34. d6 {[%emt 0:00:07]} Qb2 {[%emt 0:01:08]} 35. h3 {[%emt 0:04:11]} Be5 {[%emt 0:00:30]} 36. h4 {[%emt 0:11:46]} Bf4 {[%emt 0:00:50]} 37. Re1 {[%emt 0:02:48]} Rc8 {[%emt 0:00:49]} 38. hxg5 {[%emt 0:01:08]} hxg5 {[%emt 0:01:44]} 39. g3 {[%emt 0:06:58]} Bxg3 {[%emt 0:00:47]} 40. fxg3 {[%emt 0:00:41]} Rc2 {[%emt 0:00:21]} 41. Qe4 {[%emt 0:32:01]} Qxb3 {[%emt 0:21:37]} 42. Qe3 {[%emt 0:00:00]} Qa2 {[%emt 0:03:07]} 43. Qxg5+ {[%emt 0:00:00]} Kh7 {[%emt 0:00:04]} 44. Qh5+ {[%emt 0:00:00]} Kg7 {[%emt 0:02:02]} 45. Qg4+ {[%emt 0:00:00]} Kh7 {[%emt 0:00:21]} 46. Qe4+ {[%emt 0:00:00]} Kg8 {[%emt 0:04:13]} 47. Qg4+ {[%emt 0:00:00]} Kh7 {[%emt 0:00:07]} 48. Qh5+ {[%emt 0:00:00]} Kg7 {[%emt 0:00:11]} 49. Bf6+ {[%emt 0:00:00]} Kxf6 {[%emt 0:00:12]} 50. Qh6+ {[%emt 0:00:00]} Kf5 {[%emt 0:00:15]} 51. g4+ {[%emt 0:00:00]} Kxg4 {[%emt 0:00:06]} 52. Re4+ {[%emt 0:00:00]} Kf5 {[%emt 0:00:16]} 53. Qf4+ {[%emt 0:00:00]} Kg6 {[%emt 0:00:01]} 54. Qg4+ {[%emt 0:00:00]} Kf6 {[%emt 0:02:05]} 55. Qf4+ {[%emt 0:00:00]} Kg6 {[%emt 0:00:49]} 56. Qg3+ {[%emt 0:00:00]} Kf6 {[%emt 0:00:58]} 57. Qe5+ {[%emt 0:00:00]} Kg6 {[%emt 0:00:08]} 58. Rg4+ {[%emt 0:00:00]} 1-0

[Event "10th LCC FIDE Open 2018"]
[Site "London"]
[Date "2018.12.15"]
[Round "8"]
[White "Marzano, Carlo"]
[Black "Price, Gwilym"]
[Result "1-0"]
[ECO "E92"]
[WhiteElo "2222"]
[BlackElo "2075"]
[Annotator "NA"]
[PlyCount "93"]
[EventDate "2018.12.09"]
[EventType "swiss"]
[EventCountry "ENG"]
[SourceTitle "playchess.com"]
[Source "ChessBase"]
[SourceQuality "1"]
[TimeControl "40/5400+30:1800+30"]

1. d4 {[%emt 0:01:26]} Nf6 {[%emt 0:00:00]} 2. c4 {[%emt 0:00:11]} g6 {[%emt 0:00:00]} 3. Nc3 {[%emt 0:00:20]} Bg7 {[%emt 0:00:00]} 4. e4 {[%emt 0:00:06]} d6 {[%emt 0:00:00]} 5. Be2 {[%emt 0:00:07]} O-O {[%emt 0:00:00]} 6. Nf3 {[%emt 0:00:06]} e5 {[%emt 0:00:01]} 7. d5 {[%emt 0:00:05]} a5 {[%emt 0:00:06]} 8. Bg5 {[%emt 0:00:07]} Na6 {[%emt 0:01:45]} 9. Nd2 {[%emt 0:00:11]} h6 {[%emt 0:00:56]} 10. Be3 {[%emt 0:00:05]} Ne8 {[%emt 0:02:58]} 11. O-O {[%emt 0:03:50]} f5 {[%emt 0:02:46]} 12. f3 {[%emt 0:00:07]} f4 {[%emt 0:05:16]} 13. Bf2 {[%emt 0:00:03]} g5 {[%emt 0:00:30]} 14. a3 {[%emt 0:00:11]} Bd7 {[%emt 0:00:16]} 15. Rb1 {[%emt 0:00:14]} h5 {[%emt 0:06:35]} 16. b4 {[%emt 0:00:20]} axb4 {[%emt 0:04:11]} 17. axb4 {[%emt 0:00:04]} Rf6 {[%emt 0:00:24]} 18. c5 {[%emt 0:00:37]} Rg6 {[%emt 0:00:43]} 19. c6 {[%emt 0:01:11]} bxc6 {[%emt 0:02:00]} 20. dxc6 {[%emt 0:00:12]} Be6 {[%emt 0:00:40]} 21. Bc4 {[%emt 0:04:18]} Bxc4 {[%emt 0:01:43]} 22. Nxc4 {[%emt 0:00:04]} g4 {[%emt 0:00:14]} 23. Kh1 {[%emt 0:12:52]} g3 {[%emt 0:06:51]} 24. Be1 {[%emt 0:03:28]} gxh2 {[%emt 0:03:30]} 25. Kxh2 {[%emt 0:03:12]} Bf6 {[%emt 0:04:28]} 26. Rh1 {[%emt 0:02:21]} Bh4 {[%emt 0:00:49]} 27. Kg1 {[%emt 0:03:10]} Qg5 {[%emt 0:01:49]} 28. Rh2 {[%emt 0:03:34]} Bg3 {[%emt 0:06:37]} 29. Bxg3 {[%emt 0:00:15]} Qxg3 {[%emt 0:00:58]} 30. Qf1 {[%emt 0:11:18]} Rb8 {[%emt 0:14:39]} 31. Nd2 {[%emt 0:30:32]} Rxb4 {[%emt 0:13:03]} 32. Qxa6 {[%emt 0:02:13]} Rxb1+ {[%emt 0:00:57]} 33. Ncxb1 {[%emt 0:01:34]} h4 {[%emt 0:02:01]} 34. Qe2 {[%emt 0:03:48]} Rh6 {[%emt 0:04:36]} 35. Nc3 {[%emt 0:03:28]} Qg5 {[%emt 0:00:56]} 36. Nd5 {[%emt 0:03:06]} Kf8 {[%emt 0:00:56]} 37. Rh3 {[%emt 0:01:01]} Qd8 {[%emt 0:01:03]} 38. Nf1 {[%emt 0:03:28]} Kg7 {[%emt 0:01:17]} 39. Nh2 {[%emt 0:00:13]} Kg6 {[%emt 0:03:07]} 40. Ng4 {[%emt 0:00:11]} Rh5 {[%emt 0:00:13]} 41. Qf2 {[%emt 0:35:56]} Qg5 {[%emt 0:31:53]} 42. Qa7 {[%emt 0:00:00]} Qd8 {[%emt 0:00:00]} 43. Rh1 {[%emt 0:00:00]} Rh7 {[%emt 0:00:00]} 44. Kf1 {[%emt 0:00:00]} Rf7 {[%emt 0:00:00]} 45. Ke2 {[%emt 0:00:00]} Rh7 {[%emt 0:00:00]} 46. Rb1 {[%emt 0:00:00]} h3 {[%emt 0:00:00]} 47. gxh3 {[%emt 0:00:00]} 1-0

[Event "10th LCC FIDE Open 2018"]
[Site "London"]
[Date "2018.12.15"]
[Round "8"]
[White "Mihalik, Agoston"]
[Black "Marentini, Marcel"]
[Result "1-0"]
[ECO "C41"]
[WhiteElo "2220"]
[BlackElo "2030"]
[Annotator "NA"]
[PlyCount "59"]
[EventDate "2018.12.09"]
[EventType "swiss"]
[EventCountry "ENG"]
[SourceTitle "playchess.com"]
[Source "ChessBase"]
[SourceQuality "1"]
[TimeControl "40/5400+30:1800+30"]

1. e4 {[%emt 1:30:30]} d6 {[%emt 1:30:30]} 2. d4 {[%emt 0:00:30]} Nf6 {[%emt 0:00:30]} 3. Nc3 {[%emt 0:00:00]} e5 {[%emt 0:00:00]} 4. Nf3 {[%emt 0:00:00]} Nbd7 {[%emt 0:00:00]} 5. Bc4 {[%emt 0:00:00]} Be7 {[%emt 0:00:00]} 6. O-O {[%emt 0:00:00]} O-O {[%emt 0:00:00]} 7. Re1 {[%emt 0:00:00]} a6 {[%emt 0:00:00]} 8. a4 {[%emt 0:00:00]} b6 {[%emt 0:00:00]} 9. Ba2 {[%emt 0:00:00]} Bb7 {[%emt 0:00:00]} 10. h3 {[%emt 0:00:00]} b5 {[%emt 0:00:00]} 11. Nd5 {[%emt 0:00:00]} Nxd5 {[%emt 0:00:00]} 12. Bxd5 {[%emt 0:00:00]} c6 {[%emt 0:00:00]} 13. Ba2 {[%emt 0:00:00]} Bf6 {[%emt 0:00:00]} 14. c3 {[%emt 0:00:00]} h6 {[%emt 0:00:00]} 15. Be3 {[%emt 0:00:00]} bxa4 {[%emt 0:00:00]} 16. Qxa4 {[%emt 0:00:00]} c5 {[%emt 0:00:00]} 17. dxe5 {[%emt 0:00:00]} Nxe5 {[%emt 0:00:00]} 18. Nxe5 {[%emt 0:00:00]} Bxe5 {[%emt 0:00:00]} 19. f4 {[%emt 0:00:00]} Bf6 {[%emt 0:00:00]} 20. e5 {[%emt 0:00:00]} dxe5 {[%emt 0:00:00]} 21. fxe5 {[%emt 0:00:00]} Bxe5 {[%emt 0:00:00]} 22. Qg4 {[%emt 0:00:00]} Qb6 {[%emt 0:00:00]} 23. Re2 {[%emt 0:00:00]} a5 {[%emt 0:00:00]} 24. Rf2 {[%emt 0:00:00]} Ra7 {[%emt 0:00:00]} 25. Qh5 {[%emt 0:00:00]} Bf6 {[%emt 0:00:00]} 26. Qxc5 {[%emt 0:00:00]} Qxc5 {[%emt 0:00:00]} 27. Bxc5 {[%emt 0:00:00]} Ra6 {[%emt 0:00:00]} 28. Bxf8 {[%emt 0:00:00]} Kxf8 {[%emt 0:00:00]} 29. Bc4 {[%emt 0:00:00]} Rc6 {[%emt 0:00:00]} 30. Bd5 {[%emt 0:00:00]} 1-0

[Event "10th LCC FIDE Open 2018"]
[Site "London"]
[Date "2018.12.15"]
[Round "8"]
[White "Bukojemski, Adam"]
[Black "Flear, Christine"]
[Result "1-0"]
[ECO "B25"]
[WhiteElo "2218"]
[BlackElo "2055"]
[Annotator "NA"]
[PlyCount "67"]
[EventDate "2018.12.09"]
[EventType "swiss"]
[EventCountry "ENG"]
[SourceTitle "playchess.com"]
[Source "ChessBase"]
[SourceQuality "1"]
[TimeControl "40/5400+30:1800+30"]

1. e4 {[%emt 0:00:00]} c5 {[%emt 0:00:00]} 2. Nf3 {[%emt 0:00:05]} g6 {[%emt 0:00:00]} 3. Nc3 {[%emt 0:00:33]} Bg7 {[%emt 0:00:04]} 4. g3 {[%emt 0:00:18]} Nc6 {[%emt 0:00:37]} 5. Bg2 {[%emt 0:00:05]} d6 {[%emt 0:00:57]} 6. d3 {[%emt 0:01:17]} Rb8 {[%emt 0:02:20]} 7. Nd5 {[%emt 0:04:23]} e6 {[%emt 0:03:55]} 8. Ne3 {[%emt 0:00:07]} b5 {[%emt 0:01:51]} 9. O-O {[%emt 0:00:18]} Qb6 {[%emt 0:06:05]} 10. Nd2 {[%emt 0:03:34]} Nge7 {[%emt 0:13:06]} 11. a4 {[%emt 0:12:10]} a6 {[%emt 0:00:23]} 12. axb5 {[%emt 0:00:09]} axb5 {[%emt 0:00:12]} 13. c3 {[%emt 0:00:37]} O-O {[%emt 0:05:17]} 14. Qe2 {[%emt 0:01:19]} Bd7 {[%emt 0:03:18]} 15. f4 {[%emt 0:08:36]} f5 {[%emt 0:10:56]} 16. h4 {[%emt 0:04:18]} Qc7 {[%emt 0:08:55]} 17. Nf3 {[%emt 0:01:22]} fxe4 {[%emt 0:05:43]} 18. dxe4 {[%emt 0:00:13]} c4 {[%emt 0:01:08]} 19. Rd1 {[%emt 0:01:00]} Na5 {[%emt 0:01:54]} 20. Rxa5 {[%emt 0:05:02]} Qxa5 {[%emt 0:00:07]} 21. Rxd6 {[%emt 0:00:03]} Bc8 {[%emt 0:09:18]} 22. Bh3 {[%emt 0:10:53]} Qa1 {[%emt 0:05:13]} 23. Ne5 {[%emt 0:07:28]} b4 {[%emt 0:04:04]} 24. cxb4 {[%emt 0:14:52]} Rxb4 {[%emt 0:00:15]} 25. Qc2 {[%emt 0:02:25]} Bxe5 {[%emt 0:06:29]} 26. fxe5 {[%emt 0:00:02]} Rb3 {[%emt 0:00:55]} 27. Kh2 {[%emt 0:02:37]} Qa7 {[%emt 0:02:19]} 28. Ng4 {[%emt 0:01:26]} Qc5 {[%emt 0:00:59]} 29. Bh6 {[%emt 0:02:48]} Nf5 {[%emt 0:05:04]} 30. exf5 {[%emt 0:01:42]} exf5 {[%emt 0:00:29]} 31. Nf6+ {[%emt 0:06:55]} Kf7 {[%emt 0:00:58]} 32. Bf1 {[%emt 0:03:36]} Qxe5 {[%emt 0:02:38]} 33. Qxc4+ {[%emt 0:00:56]} Be6 {[%emt 0:00:29]} 34. Qc7+ {[%emt 0:00:10]} 1-0

[Event "10th LCC FIDE Open 2018"]
[Site "London"]
[Date "2018.12.15"]
[Round "8"]
[White "Brooks, Phil J"]
[Black "Thatte, Nishchal"]
[Result "1-0"]
[ECO "D32"]
[WhiteElo "2184"]
[BlackElo "1649"]
[Annotator "NA"]
[PlyCount "71"]
[EventDate "2018.12.09"]
[EventType "swiss"]
[EventCountry "ENG"]
[SourceTitle "playchess.com"]
[Source "ChessBase"]
[SourceQuality "1"]
[TimeControl "40/5400+30:1800+30"]

1. d4 {[%emt 0:00:00]} d5 {[%emt 0:00:00]} 2. c4 {[%emt 0:00:00]} e6 {[%emt 0:00:06]} 3. Nc3 {[%emt 0:00:00]} c5 {[%emt 0:00:08]} 4. cxd5 {[%emt 0:00:00]} exd5 {[%emt 0:00:08]} 5. Nf3 {[%emt 0:01:01]} Nc6 {[%emt 0:00:17]} 6. Bg5 {[%emt 0:00:42]} f6 {[%emt 0:10:10]} 7. Bc1 {[%emt 0:01:06]} Bf5 {[%emt 0:05:55]} 8. e3 {[%emt 0:13:10]} Nb4 {[%emt 0:01:34]} 9. Bb5+ {[%emt 0:00:12]} Kf7 {[%emt 0:05:31]} 10. O-O {[%emt 0:05:47]} Nc2 {[%emt 0:01:06]} 11. e4 {[%emt 0:04:38]} Nxa1 {[%emt 0:16:05]} 12. exf5 {[%emt 0:00:09]} Ne7 {[%emt 0:03:19]} 13. Be3 {[%emt 0:03:13]} Nxf5 {[%emt 0:01:20]} 14. Qxa1 {[%emt 0:00:06]} cxd4 {[%emt 0:00:43]} 15. Nxd4 {[%emt 0:01:18]} Nxe3 {[%emt 0:04:16]} 16. fxe3 {[%emt 0:00:03]} Bc5 {[%emt 0:03:36]} 17. Qd1 {[%emt 0:00:16]} Rc8 {[%emt 0:06:06]} 18. Ba4 {[%emt 0:15:01]} Bxd4 {[%emt 0:01:58]} 19. exd4 {[%emt 0:00:05]} Rc7 {[%emt 0:02:09]} 20. Bb3 {[%emt 0:04:09]} Rd7 {[%emt 0:01:04]} 21. Nxd5 {[%emt 0:00:27]} Kf8 {[%emt 0:00:37]} 22. Qh5 {[%emt 0:02:55]} a5 {[%emt 0:02:40]} 23. Nf4 {[%emt 0:02:27]} Qe8 {[%emt 0:01:36]} 24. Qxe8+ {[%emt 0:00:10]} Kxe8 {[%emt 0:00:05]} 25. Ba4 {[%emt 0:00:04]} Kd8 {[%emt 0:00:26]} 26. Ne6+ {[%emt 0:01:42]} Ke7 {[%emt 0:00:24]} 27. Bxd7 {[%emt 0:00:07]} Kxd7 {[%emt 0:00:06]} 28. Nxg7 {[%emt 0:00:09]} Rc8 {[%emt 0:00:05]} 29. h3 {[%emt 0:02:13]} Rc2 {[%emt 0:00:08]} 30. Rf2 {[%emt 0:00:08]} Rc1+ {[%emt 0:00:03]} 31. Kh2 {[%emt 0:00:06]} Rd1 {[%emt 0:00:04]} 32. Nf5 {[%emt 0:00:11]} Ra1 {[%emt 0:01:16]} 33. a3 {[%emt 0:00:41]} Ra2 {[%emt 0:00:05]} 34. Rd2 {[%emt 0:01:50]} Ke6 {[%emt 0:00:18]} 35. d5+ {[%emt 0:01:30]} Kxf5 {[%emt 0:00:22]} 36. d6 {[%emt 0:00:04]} 1-0